[Event "*** Titled Tuesday 3|2 Blitz"]
[Site "Chess.com"]
[Date "2015.03.03"]
[Round "1"]
[White "WanderingPuppet"]
[Black "IMLevAltounian"]
[Result "0-1"]
[WhiteElo "2087"]
[BlackElo "2449"]
[TimeControl "180+2"]
[EndTime "11:09:25 PST"]
[Termination "IMLevAltounian won by resignation"]

1. e4 {[%clk 0:02:09.7]} 1... d5 {[%clk 0:02:55.5]} 2. exd5 {[%clk 0:02:10.5]}
2... Qxd5 {[%clk 0:02:56.4]} 3. Nc3 {[%clk 0:02:12.1]} 3... Qd6 {[%clk
0:02:57.4]} 4. Nf3 {[%clk 0:02:13.7]} 4... Nf6 {[%clk 0:02:58.4]} 5. d4 {[%clk
0:02:14.7]} 5... g6 {[%clk 0:02:59.4]} 6. Nb5 {[%clk 0:02:12.8]} 6... Qb6 {[%clk
0:02:58.2]} 7. Bc4 {[%clk 0:01:58.6]} 7... Bg7 {[%clk 0:02:48.9]} 8. Bf4 {[%clk
0:01:53]} 8... Na6 {[%clk 0:02:49.8]} 9. O-O {[%clk 0:01:53.2]} 9... c6 {[%clk
0:02:50.5]} 10. Nc3 {[%clk 0:01:43.3]} 10... O-O {[%clk 0:02:38.4]} 11. Ne5
{[%clk 0:01:28.2]} 11... Qxb2 {[%clk 0:02:30.7]} 12. Na4 {[%clk 0:01:26.7]}
12... Qa3 {[%clk 0:02:30.3]} 13. Bb3 {[%clk 0:00:59.5]} 13... Nd5 {[%clk
0:02:08]} 14. Bc1 {[%clk 0:00:54.8]} 14... Qd6 {[%clk 0:02:08]} 15. c4 {[%clk
0:00:36.5]} 15... Nf6 {[%clk 0:02:02.1]} 16. c5 {[%clk 0:00:30.8]} 16... Qd8
{[%clk 0:01:58.1]} 17. h3 {[%clk 0:00:25.9]} 17... Nc7 {[%clk 0:01:58.9]} 18.
Bb2 {[%clk 0:00:25.9]} 18... Be6 {[%clk 0:01:53.3]} 19. Re1 {[%clk 0:00:26.5]}
19... Bd5 {[%clk 0:01:50.7]} 20. Bc3 {[%clk 0:00:26]} 20... Rb8 {[%clk
0:01:50.7]} 21. Ba5 {[%clk 0:00:26.9]} 21... Qc8 {[%clk 0:01:50.3]} 22. Rc1
{[%clk 0:00:26.5]} 22... Nb5 {[%clk 0:01:47.6]} 23. f3 {[%clk 0:00:25.4]} 23...
Bxb3 {[%clk 0:01:45.2]} 24. Qxb3 {[%clk 0:00:21.6]} 24... Nxd4 {[%clk
0:01:44.9]} 25. Qc4 {[%clk 0:00:19.9]} 25... Nb5 {[%clk 0:01:34]} 26. Bd2 {[%clk
0:00:17.6]} 26... Nd5 {[%clk 0:01:32.8]} 27. Nc3 {[%clk 0:00:16.1]} 27... Nbxc3
{[%clk 0:01:31.7]} 28. Bxc3 {[%clk 0:00:17.3]} 28... Nxc3 {[%clk 0:01:28.9]} 29.
Rxc3 {[%clk 0:00:17.7]} 29... Qf5 {[%clk 0:01:29.9]} 30. Rce3 {[%clk 0:00:18.3]}
30... Rbe8 {[%clk 0:01:21.1]} 31. g4 {[%clk 0:00:17.6]} 31... Qg5 {[%clk
0:01:17.6]} 32. Nd7 {[%clk 0:00:16.9]} 32... e6 {[%clk 0:01:17.2]} 33. Nxf8
{[%clk 0:00:18]} 33... Bxf8 {[%clk 0:01:17.8]} 34. Kg2 {[%clk 0:00:16.8]} 34...
Qxc5 {[%clk 0:01:14.3]} 35. Qxc5 {[%clk 0:00:16]} 35... Bxc5 {[%clk 0:01:16.2]}
36. Rb3 {[%clk 0:00:16.3]} 36... b6 {[%clk 0:01:16]} 37. Rd1 {[%clk 0:00:17.3]}
37... Re7 {[%clk 0:01:15.2]} 38. Rd8+ {[%clk 0:00:18.4]} 38... Kg7 {[%clk
0:01:16.4]} 39. Rbd3 {[%clk 0:00:19.9]} 39... a5 {[%clk 0:01:07.2]} 40. R3d7
{[%clk 0:00:20.4]} 40... Kf6 {[%clk 0:01:07.6]} 41. Rxe7 {[%clk 0:00:21.6]}
41... Kxe7 {[%clk 0:01:09.5]} 42. Rh8 {[%clk 0:00:21.9]} 42... b5 {[%clk
0:01:06.3]} 43. f4 {[%clk 0:00:19.3]} 43... a4 {[%clk 0:01:06.8]} 44. Rc8 {[%clk
0:00:19.4]} 44... Kd7 {[%clk 0:01:07.7]} 45. Rh8 {[%clk 0:00:20.4]} 45... Bd4
{[%clk 0:01:07.7]} 46. Rb8 {[%clk 0:00:12.8]} 46... f5 {[%clk 0:01:01.2]} 47.
Kf3 {[%clk 0:00:12.6]} 47... a3 {[%clk 0:00:56.9]} 48. Rb7+ {[%clk 0:00:12.4]}
48... Kd6 {[%clk 0:00:58]} 49. Rxh7 {[%clk 0:00:13.9]} 49... c5 {[%clk
0:00:58.1]} 50. Rb7 {[%clk 0:00:14.5]} 50... b4 {[%clk 0:00:59.5]} 51. Rb6+
{[%clk 0:00:11.2]} 51... Kd5 {[%clk 0:01:00.3]} 52. h4 {[%clk 0:00:11.4]} 52...
Bc3 {[%clk 0:00:52.1]} 53. gxf5 {[%clk 0:00:10.5]} 53... gxf5 {[%clk 0:00:52.7]}
54. h5 {[%clk 0:00:11.7]} 54... c4 {[%clk 0:00:53.4]} 55. h6 {[%clk 0:00:07]}
55... b3 {[%clk 0:00:50.5]} 56. axb3 {[%clk 0:00:08.2]} 56... a2 {[%clk
0:00:51.8]} 57. bxc4+ {[%clk 0:00:08.4]} 57... Kxc4 {[%clk 0:00:53.2]} 58. Rc6+
{[%clk 0:00:07.8]} 58... Kd3 {[%clk 0:00:54.4]} 59. Ra6 {[%clk 0:00:06.6]} 59...
a1=Q {[%clk 0:00:55.2]} 60. Rxa1 {[%clk 0:00:07]} 60... Bxa1 {[%clk 0:00:57.1]}
0-1

[Event "*** Titled Tuesday 3|2 Blitz"]
[Site "Chess.com"]
[Date "2015.03.03"]
[Round "1"]
[White "petrpalachev"]
[Black "esr44"]
[Result "1-0"]
[WhiteElo "2441"]
[BlackElo "2077"]
[TimeControl "180+2"]
[EndTime "11:10:44 PST"]
[Termination "petrpalachev won by resignation"]

1. d4 {[%clk 0:02:58.9]} 1... d5 {[%clk 0:02:58.2]} 2. c4 {[%clk 0:03:00.8]}
2... e6 {[%clk 0:02:58.7]} 3. Nc3 {[%clk 0:03:01]} 3... Be7 {[%clk 0:02:58.8]}
4. Nf3 {[%clk 0:02:59.6]} 4... Nf6 {[%clk 0:02:59.8]} 5. Bf4 {[%clk 0:02:59.9]}
5... O-O {[%clk 0:03:00.5]} 6. e3 {[%clk 0:02:57.9]} 6... c5 {[%clk 0:03:01.7]}
7. dxc5 {[%clk 0:02:57.6]} 7... Bxc5 {[%clk 0:03:02.9]} 8. Qc2 {[%clk
0:02:57.8]} 8... Nc6 {[%clk 0:03:00.6]} 9. Rd1 {[%clk 0:02:58.4]} 9... Bb4
{[%clk 0:02:49.3]} 10. Be2 {[%clk 0:02:40.5]} 10... Ne4 {[%clk 0:02:42.4]} 11.
O-O {[%clk 0:02:39.4]} 11... Bxc3 {[%clk 0:02:34.7]} 12. bxc3 {[%clk 0:02:40]}
12... Qa5 {[%clk 0:02:02.4]} 13. Rc1 {[%clk 0:02:29.4]} 13... Bd7 {[%clk
0:01:49.4]} 14. Bd3 {[%clk 0:02:16.5]} 14... f5 {[%clk 0:01:44.7]} 15. Nd4
{[%clk 0:01:40.7]} 15... Rae8 {[%clk 0:01:05.8]} 16. cxd5 {[%clk 0:01:20.5]}
16... exd5 {[%clk 0:01:04]} 17. Qb2 {[%clk 0:01:20.1]} 17... Nc5 {[%clk
0:00:54.8]} 18. Be2 {[%clk 0:01:15.1]} 18... Ne5 {[%clk 0:00:45.6]} 19. Nb3
{[%clk 0:01:10]} 19... Qb6 {[%clk 0:00:42.1]} 20. Qa3 {[%clk 0:01:09.4]} 20...
Ncd3 {[%clk 0:00:38.9]} 21. Bxd3 {[%clk 0:01:08.1]} 21... Nxd3 {[%clk
0:00:39.9]} 22. Rb1 {[%clk 0:01:06.2]} 22... Nxf4 {[%clk 0:00:40.2]} 23. exf4
{[%clk 0:01:08]} 23... Qh6 {[%clk 0:00:22.4]} 24. Qxa7 {[%clk 0:01:02.7]} 24...
Bc6 {[%clk 0:00:23.1]} 25. g3 {[%clk 0:00:53.9]} 25... Ra8 {[%clk 0:00:22.1]}
26. Qd4 {[%clk 0:00:48.1]} 26... Rxa2 {[%clk 0:00:22.9]} 27. Nc5 {[%clk
0:00:49.3]} 27... Qf6 {[%clk 0:00:14.9]} 28. Nxb7 {[%clk 0:00:26.1]} 28... Bxb7
{[%clk 0:00:13.3]} 29. Qxf6 {[%clk 0:00:18.3]} 29... Rxf6 {[%clk 0:00:13.6]} 30.
Rxb7 {[%clk 0:00:19.9]} 30... Rc6 {[%clk 0:00:14.4]} 31. Re1 {[%clk 0:00:17.1]}
31... h6 {[%clk 0:00:12.2]} 32. Re8+ {[%clk 0:00:16.5]} 32... Kh7 {[%clk
0:00:12.4]} 33. Ree7 {[%clk 0:00:18.1]} 33... Rg6 {[%clk 0:00:13.1]} 34. Re5
{[%clk 0:00:18.6]} 34... Rc2 {[%clk 0:00:07.7]} 35. Rxd5 {[%clk 0:00:17.3]}
35... Rf6 {[%clk 0:00:08.6]} 36. Rc7 {[%clk 0:00:16.5]} 36... Re6 {[%clk
0:00:07.5]} 37. Rdd7 {[%clk 0:00:16.2]} 37... Rg6 {[%clk 0:00:07.5]} 38. h4
{[%clk 0:00:13.3]} 38... h5 {[%clk 0:00:08.3]} 39. c4 {[%clk 0:00:11.7]} 39...
Re2 {[%clk 0:00:08.5]} 40. c5 {[%clk 0:00:12.2]} 40... Re4 {[%clk 0:00:10.1]}
41. Kf1 {[%clk 0:00:12.2]} 41... Rc4 {[%clk 0:00:09.7]} 42. Rd6 {[%clk
0:00:10.9]} 42... Rc1+ {[%clk 0:00:09.7]} 43. Kg2 {[%clk 0:00:10.8]} 43... Rc2
{[%clk 0:00:05.4]} 44. Rxg6 {[%clk 0:00:10.9]} 44... Kxg6 {[%clk 0:00:06.6]} 45.
Rc6+ {[%clk 0:00:12.6]} 45... Kf7 {[%clk 0:00:07.4]} 46. Rc8 {[%clk 0:00:12.8]}
46... Ke6 {[%clk 0:00:06.7]} 47. c6 {[%clk 0:00:12.5]} 47... Kd6 {[%clk
0:00:07.9]} 48. Rh8 {[%clk 0:00:12.3]} 48... g6 {[%clk 0:00:08.2]} 49. Rh6
{[%clk 0:00:12.9]} 49... Kxc6 {[%clk 0:00:09.1]} 50. Rxg6+ {[%clk 0:00:14.4]}
50... Kd5 {[%clk 0:00:11]} 51. Rg5 {[%clk 0:00:16]} 51... Ke4 {[%clk 0:00:11.9]}
52. Rxh5 {[%clk 0:00:17]} 52... Ra2 {[%clk 0:00:12.3]} 53. Rh8 {[%clk
0:00:17.6]} 53... Kd3 {[%clk 0:00:11.6]} 54. Re8 {[%clk 0:00:18.7]} 54... Ra6
{[%clk 0:00:10.5]} 55. Re5 {[%clk 0:00:19.7]} 55... Rf6 {[%clk 0:00:11.1]} 56.
Kf3 {[%clk 0:00:21.1]} 56... Kd4 {[%clk 0:00:12.7]} 57. h5 {[%clk 0:00:22]}
57... Rh6 {[%clk 0:00:13.6]} 58. Rxf5 {[%clk 0:00:23]} 58... Kd3 {[%clk
0:00:14.3]} 59. Rd5+ {[%clk 0:00:23.8]} 59... Kc4 {[%clk 0:00:15.4]} 60. Ke4
{[%clk 0:00:25.4]} 60... Re6+ {[%clk 0:00:13.5]} 61. Re5 {[%clk 0:00:26.5]}
61... Rh6 {[%clk 0:00:13.4]} 62. g4 {[%clk 0:00:27.8]} 62... Kc3 {[%clk
0:00:13.7]} 63. f5 {[%clk 0:00:28.5]} 63... Kd2 {[%clk 0:00:12.2]} 64. Re6
{[%clk 0:00:28.6]} 64... Rh8 {[%clk 0:00:12.9]} 65. h6 {[%clk 0:00:30.1]} 65...
Ke2 {[%clk 0:00:13.8]} 66. f4 {[%clk 0:00:31.5]} 66... Kf2 {[%clk 0:00:14.7]}
67. g5 {[%clk 0:00:32.9]} 67... Kg3 {[%clk 0:00:16]} 68. f6 {[%clk 0:00:32.7]}
68... Kg4 {[%clk 0:00:16.7]} 69. f7 {[%clk 0:00:34.2]} 69... Kh5 {[%clk
0:00:16]} 70. Re8 {[%clk 0:00:34.4]} 70... Kg6 {[%clk 0:00:14.4]} 71. Rxh8
{[%clk 0:00:33.8]} 71... Kxf7 {[%clk 0:00:15.3]} 72. Kf5 {[%clk 0:00:34.6]} 1-0

[Event "*** Titled Tuesday 3|2 Blitz"]
[Site "Chess.com"]
[Date "2015.03.03"]
[Round "2"]
[White "gumersindo"]
[Black "manitodeplomo"]
[Result "0-1"]
[WhiteElo "2096"]
[BlackElo "2296"]
[TimeControl "180+2"]
[EndTime "11:15:58 PST"]
[Termination "manitodeplomo won by resignation"]

1. d4 {[%clk 0:03:00]} 1... c5 {[%clk 0:02:58.1]} 2. d5 {[%clk 0:03:00.3]} 2...
Nf6 {[%clk 0:02:57.4]} 3. Nc3 {[%clk 0:03:00.3]} 3... d6 {[%clk 0:02:55.5]} 4.
e4 {[%clk 0:02:59.4]} 4... g6 {[%clk 0:02:56.8]} 5. h3 {[%clk 0:02:59.9]} 5...
Bg7 {[%clk 0:02:57.7]} 6. Nf3 {[%clk 0:03:01.3]} 6... O-O {[%clk 0:02:59]} 7. a4
{[%clk 0:03:01.8]} 7... e6 {[%clk 0:02:58.5]} 8. dxe6 {[%clk 0:02:53.5]} 8...
Bxe6 {[%clk 0:02:58.9]} 9. Be2 {[%clk 0:02:52.5]} 9... Nc6 {[%clk 0:02:58.2]}
10. O-O {[%clk 0:02:52.8]} 10... Nb4 {[%clk 0:02:26.4]} 11. Be3 {[%clk
0:02:46.9]} 11... b6 {[%clk 0:02:24.9]} 12. a5 {[%clk 0:02:45.1]} 12... d5
{[%clk 0:02:22.5]} 13. exd5 {[%clk 0:02:40.7]} 13... Nfxd5 {[%clk 0:02:21.9]}
14. Nxd5 {[%clk 0:02:41]} 14... Nxd5 {[%clk 0:02:19.9]} 15. Bc1 {[%clk
0:02:34.3]} 15... Qc7 {[%clk 0:02:16.8]} 16. axb6 {[%clk 0:02:28.8]} 16... axb6
{[%clk 0:02:17.6]} 17. Rxa8 {[%clk 0:02:29.2]} 17... Rxa8 {[%clk 0:02:19.5]} 18.
Bc4 {[%clk 0:02:29.5]} 18... Rd8 {[%clk 0:02:15.3]} 19. Qe2 {[%clk 0:02:29.4]}
19... h6 {[%clk 0:02:10.2]} 20. Rd1 {[%clk 0:02:25.1]} 20... Kh7 {[%clk
0:02:06.6]} 21. b3 {[%clk 0:02:21.8]} 21... Nc3 {[%clk 0:02:06.7]} 0-1

[Event "*** Titled Tuesday 3|2 Blitz"]
[Site "Chess.com"]
[Date "2015.03.03"]
[Round "2"]
[White "HansCoolNiemann"]
[Black "kinetix"]
[Result "1-0"]
[WhiteElo "1826"]
[BlackElo "1479"]
[TimeControl "180+2"]
[EndTime "11:16:50 PST"]
[Termination "HansCoolNiemann won by resignation"]

1. d4 {[%clk 0:03:00]} 1... d6 {[%clk 0:02:55.8]} 2. Nf3 {[%clk 0:02:59.3]} 2...
g6 {[%clk 0:02:56.3]} 3. c4 {[%clk 0:02:58.9]} 3... Bg7 {[%clk 0:02:54.5]} 4.
Nc3 {[%clk 0:02:59.8]} 4... e5 {[%clk 0:02:55]} 5. dxe5 {[%clk 0:03:00.4]} 5...
dxe5 {[%clk 0:02:55.6]} 6. Qxd8+ {[%clk 0:03:02.3]} 6... Kxd8 {[%clk 0:02:56.9]}
7. Bg5+ {[%clk 0:03:03.4]} 7... f6 {[%clk 0:02:54.7]} 8. O-O-O+ {[%clk
0:03:04.2]} 8... Bd7 {[%clk 0:02:47.3]} 9. Bh4 {[%clk 0:02:58.4]} 9... Nh6
{[%clk 0:02:45]} 10. Nd5 {[%clk 0:02:50.7]} 10... g5 {[%clk 0:02:36.4]} 11. Nxg5
{[%clk 0:02:50.6]} 11... fxg5 {[%clk 0:02:32.6]} 12. Bxg5+ {[%clk 0:02:51.1]}
12... Ke8 {[%clk 0:02:19.7]} 13. Nxc7+ {[%clk 0:02:50.4]} 13... Kf7 {[%clk
0:02:15.7]} 14. Nxa8 {[%clk 0:02:51.4]} 14... Na6 {[%clk 0:02:15.4]} 15. Rxd7+
{[%clk 0:02:50.2]} 15... Kg6 {[%clk 0:02:10.5]} 16. Nc7 {[%clk 0:02:48.8]} 16...
Nc5 {[%clk 0:01:41.7]} 17. Rd5 {[%clk 0:02:48.7]} 17... b6 {[%clk 0:01:39.5]}
18. Be3 {[%clk 0:02:47.7]} 18... Ne4 {[%clk 0:01:25.9]} 19. Ne6 {[%clk
0:02:45.9]} 19... Nf5 {[%clk 0:01:24.1]} 20. Nxg7 {[%clk 0:02:44.7]} 20... Nxe3
{[%clk 0:01:22.3]} 21. fxe3 {[%clk 0:02:41.2]} 21... Kxg7 {[%clk 0:01:16.7]} 22.
Rxe5 {[%clk 0:02:42.2]} 22... Nf6 {[%clk 0:01:16]} 23. g3 {[%clk 0:02:42]} 23...
Rd8 {[%clk 0:01:08.1]} 24. Bg2 {[%clk 0:02:42.5]} 24... Ng4 {[%clk 0:01:04.7]}
25. Rg5+ {[%clk 0:02:42.8]} 1-0

[Event "*** Titled Tuesday 3|2 Blitz"]
[Site "Chess.com"]
[Date "2015.03.03"]
[Round "2"]
[White "Tilicheev_Viacheslav"]
[Black "KyronGriffith"]
[Result "1-0"]
[WhiteElo "2521"]
[BlackElo "2160"]
[TimeControl "180+2"]
[EndTime "11:18:12 PST"]
[Termination "Tilicheev_Viacheslav won by resignation"]

1. e4 {[%clk 0:03:00]} 1... c5 {[%clk 0:02:59.3]} 2. Nf3 {[%clk 0:02:58.6]} 2...
d6 {[%clk 0:02:59.3]} 3. d4 {[%clk 0:02:59.3]} 3... cxd4 {[%clk 0:03:01.2]} 4.
Nxd4 {[%clk 0:03:01.2]} 4... Nf6 {[%clk 0:03:02.5]} 5. Nc3 {[%clk 0:03:02.8]}
5... a6 {[%clk 0:03:03.9]} 6. Bg5 {[%clk 0:03:03.2]} 6... e6 {[%clk 0:03:05.1]}
7. f4 {[%clk 0:03:04.3]} 7... Be7 {[%clk 0:03:06.3]} 8. Qf3 {[%clk 0:03:05.1]}
8... Qc7 {[%clk 0:03:07.5]} 9. O-O-O {[%clk 0:03:05.7]} 9... Nbd7 {[%clk
0:03:08.7]} 10. g4 {[%clk 0:03:07]} 10... b5 {[%clk 0:03:08.1]} 11. Bxf6 {[%clk
0:03:08.2]} 11... Bxf6 {[%clk 0:03:08.2]} 12. Ndxb5 {[%clk 0:03:05.7]} 12...
axb5 {[%clk 0:02:57.3]} 13. Nxb5 {[%clk 0:03:07.6]} 13... Bxb2+ {[%clk
0:01:44.4]} 14. Kxb2 {[%clk 0:02:57.9]} 14... Qa5 {[%clk 0:01:37.6]} 15. Nxd6+
{[%clk 0:02:50.6]} 15... Ke7 {[%clk 0:01:37.5]} 16. Bc4 {[%clk 0:02:29]} 16...
Ba6 {[%clk 0:01:30]} 17. Bb3 {[%clk 0:02:25.7]} 17... Nc5 {[%clk 0:01:30.1]} 18.
Qc3 {[%clk 0:02:14.4]} 18... Qb6 {[%clk 0:00:36.9]} 19. Qxg7 {[%clk 0:02:13.1]}
19... Na4+ {[%clk 0:00:10.7]} 20. Ka1 {[%clk 0:02:11.5]} 1-0

[Event "*** Titled Tuesday 3|2 Blitz"]
[Site "Chess.com"]
[Date "2015.03.03"]
[Round "2"]
[White "DanielNaroditsky"]
[Black "1stSecond"]
[Result "1-0"]
[WhiteElo "2600"]
[BlackElo "2370"]
[TimeControl "180+2"]
[EndTime "11:18:28 PST"]
[Termination "DanielNaroditsky won by resignation"]

1. e4 {[%clk 0:03:00]} 1... e5 {[%clk 0:02:59.2]} 2. Nf3 {[%clk 0:03:01.4]} 2...
Nc6 {[%clk 0:02:58.7]} 3. Bb5 {[%clk 0:03:02.8]} 3... a6 {[%clk 0:03:00.1]} 4.
Ba4 {[%clk 0:03:03.9]} 4... Nge7 {[%clk 0:03:01.4]} 5. Nc3 {[%clk 0:03:03.6]}
5... g6 {[%clk 0:03:01.7]} 6. d4 {[%clk 0:03:04.9]} 6... exd4 {[%clk 0:03:03.1]}
7. Nd5 {[%clk 0:03:06.2]} 7... Bg7 {[%clk 0:03:04.3]} 8. Bg5 {[%clk 0:03:06.8]}
8... h6 {[%clk 0:03:05.5]} 9. Bf6 {[%clk 0:02:57.4]} 9... Bxf6 {[%clk
0:03:05.3]} 10. Nxf6+ {[%clk 0:02:57.7]} 10... Kf8 {[%clk 0:03:07.2]} 11. Nxd4
{[%clk 0:02:54.1]} 11... Nf5 {[%clk 0:03:07.2]} 12. exf5 {[%clk 0:02:32.5]}
12... Qxf6 {[%clk 0:03:06.8]} 13. Bxc6 {[%clk 0:02:33.8]} 13... bxc6 {[%clk
0:03:00.4]} 14. fxg6 {[%clk 0:02:35.4]} 14... Rg8 {[%clk 0:03:01.3]} 15. gxf7
{[%clk 0:02:32.5]} 15... Rxg2 {[%clk 0:03:01.7]} 16. Qe2 {[%clk 0:02:27.4]}
16... Bb7 {[%clk 0:02:57.6]} 17. O-O-O {[%clk 0:02:21.7]} 17... c5 {[%clk
0:02:56.6]} 18. Rhe1 {[%clk 0:02:12.1]} 18... cxd4 {[%clk 0:02:30.5]} 19. Qe8+
{[%clk 0:02:12.5]} 19... Kg7 {[%clk 0:02:31.1]} 20. Re7 {[%clk 0:01:57.8]} 20...
Kg6 {[%clk 0:01:27]} 21. f8=Q+ {[%clk 0:01:36.2]} 21... Rxe8 {[%clk 0:01:28.3]}
22. Qxe8+ {[%clk 0:01:37.6]} 22... Kg5 {[%clk 0:01:30]} 23. Qxd7 {[%clk
0:01:23.4]} 23... Qf4+ {[%clk 0:01:17.8]} 24. Kb1 {[%clk 0:01:23.3]} 24... Bf3
{[%clk 0:01:10.4]} 25. Rg7+ {[%clk 0:01:17.2]} 25... Kh5 {[%clk 0:01:11.2]} 26.
Qh3+ {[%clk 0:01:16.4]} 1-0

[Event "*** Titled Tuesday 3|2 Blitz"]
[Site "Chess.com"]
[Date "2015.03.03"]
[Round "2"]
[White "Mugzyyy"]
[Black "ChessPsych0"]
[Result "1-0"]
[WhiteElo "2356"]
[BlackElo "2042"]
[TimeControl "180+2"]
[EndTime "11:18:41 PST"]
[Termination "Mugzyyy won by resignation"]

1. d4 {[%clk 0:03:00]} 1... Nf6 {[%clk 0:02:57.5]} 2. c4 {[%clk 0:03:01.2]} 2...
c5 {[%clk 0:02:55.8]} 3. Nf3 {[%clk 0:03:00]} 3... cxd4 {[%clk 0:02:47.1]} 4.
Nxd4 {[%clk 0:03:01.1]} 4... e5 {[%clk 0:02:46.4]} 5. Nb3 {[%clk 0:02:59.6]}
5... d5 {[%clk 0:02:47.2]} 6. cxd5 {[%clk 0:03:00.9]} 6... Qxd5 {[%clk
0:02:48.6]} 7. Qxd5 {[%clk 0:03:00.7]} 7... Nxd5 {[%clk 0:02:50.5]} 8. g3 {[%clk
0:03:01.9]} 8... Nc6 {[%clk 0:02:45.5]} 9. Bg2 {[%clk 0:03:03]} 9... Ndb4 {[%clk
0:02:38]} 10. Na3 {[%clk 0:03:02.5]} 10... Be7 {[%clk 0:02:34.5]} 11. O-O {[%clk
0:03:01.7]} 11... O-O {[%clk 0:02:35.7]} 12. Bd2 {[%clk 0:03:00.5]} 12... Bg4
{[%clk 0:02:20.7]} 13. Rfe1 {[%clk 0:02:53.7]} 13... Rad8 {[%clk 0:02:16.5]} 14.
Be3 {[%clk 0:02:49]} 14... b6 {[%clk 0:02:00.9]} 15. Kf1 {[%clk 0:02:37]} 15...
Rc8 {[%clk 0:01:59.2]} 16. Rec1 {[%clk 0:02:35.1]} 16... Be6 {[%clk 0:01:58.4]}
17. Nb5 {[%clk 0:02:22.4]} 17... a6 {[%clk 0:01:47.7]} 18. Nc3 {[%clk 0:02:22]}
18... b5 {[%clk 0:01:21.9]} 19. Nc5 {[%clk 0:02:17.2]} 19... Bxc5 {[%clk
0:01:14.9]} 20. Bxc5 {[%clk 0:02:17.6]} 20... Rfd8 {[%clk 0:01:15.8]} 21. Bb6
{[%clk 0:01:59]} 21... Rd2 {[%clk 0:01:13.6]} 22. a3 {[%clk 0:01:48.1]} 22...
Nc2 {[%clk 0:01:07.5]} 23. Ne4 {[%clk 0:01:49.2]} 23... Rxe2 {[%clk 0:00:26.5]}
24. Kxe2 {[%clk 0:01:46.9]} 24... Bc4+ {[%clk 0:00:27.8]} 25. Kd2 {[%clk
0:01:44.7]} 25... Nxa1 {[%clk 0:00:28.8]} 26. Rxa1 {[%clk 0:01:45.8]} 26... f5
{[%clk 0:00:29.5]} 27. Nd6 {[%clk 0:01:46.3]} 27... Rb8 {[%clk 0:00:26.8]} 28.
Bc7 {[%clk 0:01:47.6]} 1-0

[Event "*** Titled Tuesday 3|2 Blitz"]
[Site "Chess.com"]
[Date "2015.03.03"]
[Round "2"]
[White "bsmail"]
[Black "Ar4uha"]
[Result "0-1"]
[WhiteElo "2056"]
[BlackElo "2468"]
[TimeControl "180+2"]
[EndTime "11:18:55 PST"]
[Termination "Ar4uha won by resignation"]

1. d4 {[%clk 0:03:00]} 1... Nf6 {[%clk 0:02:56.6]} 2. c4 {[%clk 0:02:50.9]} 2...
e6 {[%clk 0:02:57.8]} 3. Nc3 {[%clk 0:02:51.1]} 3... Bb4 {[%clk 0:02:58.3]} 4.
Nf3 {[%clk 0:02:51.4]} 4... b6 {[%clk 0:02:57.5]} 5. g3 {[%clk 0:02:52.1]} 5...
Bb7 {[%clk 0:02:57.6]} 6. Bg2 {[%clk 0:02:53.2]} 6... Ne4 {[%clk 0:02:59.1]} 7.
Bd2 {[%clk 0:02:46.7]} 7... Bxc3 {[%clk 0:02:57.3]} 8. Bxc3 {[%clk 0:02:47.3]}
8... O-O {[%clk 0:02:57.9]} 9. O-O {[%clk 0:02:46.8]} 9... d6 {[%clk 0:02:59.4]}
10. Qc2 {[%clk 0:02:46.1]} 10... Nxc3 {[%clk 0:03:00]} 11. Qxc3 {[%clk
0:02:46.4]} 11... Be4 {[%clk 0:03:00.7]} 12. Qe3 {[%clk 0:02:44.3]} 12... f5
{[%clk 0:02:56.9]} 13. Ng5 {[%clk 0:02:44.3]} 13... Bxg2 {[%clk 0:02:50.6]} 14.
Nxe6 {[%clk 0:02:21.8]} 14... Qf6 {[%clk 0:02:27.3]} 15. Kxg2 {[%clk 0:02:20.9]}
15... Re8 {[%clk 0:02:28.4]} 16. d5 {[%clk 0:02:07.8]} 16... Nd7 {[%clk
0:02:26.9]} 17. b3 {[%clk 0:02:03.4]} 17... Nc5 {[%clk 0:02:23.8]} 18. Qg5
{[%clk 0:01:57]} 18... Rxe6 {[%clk 0:02:22]} 19. Qxf6 {[%clk 0:01:53.7]} 19...
Rxf6 {[%clk 0:02:23.2]} 20. b4 {[%clk 0:01:55]} 20... Nd7 {[%clk 0:02:22.6]} 21.
Rae1 {[%clk 0:01:51.1]} 21... f4 {[%clk 0:02:23.8]} 22. e4 {[%clk 0:01:51.5]}
22... fxe3 {[%clk 0:02:22.9]} 23. Rxe3 {[%clk 0:01:52.3]} 23... Ne5 {[%clk
0:02:22.5]} 24. c5 {[%clk 0:01:53]} 24... bxc5 {[%clk 0:02:23.6]} 25. bxc5
{[%clk 0:01:53.9]} 25... Raf8 {[%clk 0:02:25.2]} 26. f4 {[%clk 0:01:54.9]} 26...
Ng4 {[%clk 0:02:25.6]} 27. Re7 {[%clk 0:01:55.4]} 27... R6f7 {[%clk 0:02:27.2]}
28. Rfe1 {[%clk 0:01:54.4]} 28... dxc5 {[%clk 0:02:25.7]} 29. h3 {[%clk
0:01:55.6]} 29... Nf6 {[%clk 0:02:26.8]} 30. Rxf7 {[%clk 0:01:51.6]} 30... Kxf7
{[%clk 0:02:27.7]} 31. Rc1 {[%clk 0:01:51.8]} 31... Nxd5 {[%clk 0:02:26.7]} 32.
Rxc5 {[%clk 0:01:52.1]} 32... Rd8 {[%clk 0:02:27.3]} 33. Kf3 {[%clk 0:01:52.5]}
33... Ke6 {[%clk 0:02:24.1]} 34. Ke4 {[%clk 0:01:53.7]} 34... Nf6+ {[%clk
0:02:19.4]} 35. Ke3 {[%clk 0:01:54.4]} 35... Rd7 {[%clk 0:02:17.7]} 36. g4
{[%clk 0:01:55.5]} 36... Kd6 {[%clk 0:02:18.2]} 37. Ra5 {[%clk 0:01:54.3]} 37...
c6 {[%clk 0:02:19.4]} 38. Kd4 {[%clk 0:01:55.1]} 38... Nd5 {[%clk 0:02:20.1]}
39. f5 {[%clk 0:01:54]} 39... Rb7 {[%clk 0:02:20.5]} 40. g5 {[%clk 0:01:48.4]}
40... Rf7 {[%clk 0:02:10.6]} 41. Ke4 {[%clk 0:01:48.5]} 41... Re7+ {[%clk
0:02:10.9]} 42. Kf3 {[%clk 0:01:47.9]} 42... Nb6 {[%clk 0:02:06.9]} 43. Kg4
{[%clk 0:01:47.1]} 43... Rf7 {[%clk 0:02:03]} 44. h4 {[%clk 0:01:43.3]} 44... c5
{[%clk 0:02:04.4]} 45. h5 {[%clk 0:01:44.3]} 45... c4 {[%clk 0:02:05.9]} 46. g6
{[%clk 0:01:43.4]} 46... hxg6 {[%clk 0:02:07.1]} 47. fxg6 {[%clk 0:01:44.9]}
47... Rc7 {[%clk 0:02:07.9]} 48. Rf5 {[%clk 0:01:39.8]} 48... c3 {[%clk
0:02:09.3]} 49. Rf1 {[%clk 0:01:41]} 49... c2 {[%clk 0:02:10.7]} 50. Rc1 {[%clk
0:01:42]} 50... Nd5 {[%clk 0:02:11.6]} 51. Kg5 {[%clk 0:01:43]} 51... Nb4 {[%clk
0:02:10.9]} 52. a4 {[%clk 0:01:41.4]} 52... Nd3 {[%clk 0:02:11.1]} 53. h6 {[%clk
0:01:37.3]} 53... gxh6+ {[%clk 0:02:11.5]} 0-1